bitfinex/quotes_BTCUSD_20251208
["timestamp","ask_amount","ask_price","bid_price","bid_amount"]
[1765189823157,0.23296682,92040.0,92030.0,0.00978]
[1765189823158,0.22818123,92033.0,92030.0,0.02064602]
[1765189823363,0.21731678,92032.0,92030.0,0.00978]
[1765189823566,0.01086566,92033.0,92030.0,0.00978]
[1765189823972,0.21731807,92031.0,92030.0,0.00978]
[1765189824392,0.21731807,92031.0,92030.0,0.00984352]
[1765189824601,0.24141807,92031.0,92030.0,0.00206352]
[1765189824809,0.25708807,92031.0,92030.0,0.00206352]
[1765189825013,0.23298807,92031.0,92030.0,6.352e-05]
[1765189825437,0.23298807,92031.0,92030.0,0.00206352]
[1765189825844,0.23298807,92031.0,92030.0,0.00506352]
[1765189826075,0.23298807,92031.0,92030.0,0.00206352]
[1765189826286,0.23298807,92031.0,92030.0,0.00506352]
[1765189826500,0.25708807,92031.0,92030.0,0.00506352]
[1765189826715,0.23298807,92031.0,92030.0,0.00506352]
[1765189826938,0.2406793,92033.0,92030.0,0.00506352]
[1765189827146,0.21731588,92032.0,92030.0,0.00506352]
[1765189827730,0.21731588,92032.0,92030.0,0.22038343]
[1765189827944,0.2406792,92033.0,92030.0,0.22038343]
[1765189828160,0.2406792,92033.0,92030.0,0.22238343]
[1765189828362,0.2406792,92033.0,92030.0,0.23324945]
[1765189828596,0.02336566,92033.0,92031.0,0.2173173]
[1765189829419,0.228176,92035.0,92032.0,0.22817955]
[1765189829617,0.01086554,92034.0,92031.0,0.00978]
[1765189829820,0.21731571,92032.0,92031.0,0.00978]
[1765189830019,0.21731571,92032.0,92031.0,0.01278]
[1765189830221,0.21731571,92032.0,92031.0,0.00978]
[1765189831193,0.21731571,92032.0,92031.0,0.01178]
[1765189831615,0.2173154,92033.0,92031.0,0.01178]
[1765189831616,0.21731531,92033.0,92031.0,0.01178]
[1765189831991,0.21731531,92033.0,92031.0,0.01478]
[1765189832198,0.01086554,92034.0,92031.0,0.01478]
[1765189832199,0.21731571,92032.0,92031.0,0.01478]
[1765189832399,0.21731359,92033.0,92031.0,0.01478]
[1765189832960,0.21731359,92033.0,92031.0,0.22709715]
[1765189833173,0.21731359,92033.0,92031.0,0.23209715]
[1765189833418,0.21731403,92033.0,92031.0,0.01478]
[1765189833616,0.21731403,92033.0,92031.0,0.01278]
[1765189833794,0.21731403,92033.0,92031.0,0.01478]
[1765189834423,0.21731571,92032.0,92031.0,0.01478]
[1765189835350,0.21731571,92032.0,92031.0,0.002]
[1765189835789,0.21731571,92032.0,92031.0,0.003]
[1765189835988,0.21731571,92032.0,92031.0,0.005]
[1765189837911,0.22817655,92034.0,92031.0,0.005]
[1765189838114,0.22817655,92034.0,92031.0,0.01478]
[1765189838317,0.21730683,92036.0,92032.0,0.21731571]
[1765189838480,0.21730683,92036.0,92033.0,0.21731199]
[1765189839575,0.21730889,92035.0,92033.0,0.22817765]
[1765189839783,0.21730889,92035.0,92033.0,0.23017765]
[1765189840498,0.21731099,92034.0,92033.0,0.003]
[1765189841012,0.21731099,92034.0,92030.0,6.352e-05]
[1765189841013,0.21731807,92031.0,92030.0,6.352e-05]
[1765189843624,0.21731807,92031.0,92030.0,0.00206352]
[1765189843998,0.21731807,92031.0,92030.0,0.00506352]
[1765189844750,0.31815106,92031.0,92030.0,0.00506352]
[1765189845618,0.31815106,92031.0,92030.0,0.00306352]
[1765189845824,0.31815106,92031.0,92030.0,6.352e-05]
[1765189845993,0.31815106,92031.0,92030.0,0.00106352]
[1765189847734,0.34034705,92031.0,92030.0,0.00206352]
[1765189848304,0.31815106,92031.0,92030.0,0.00206352]
[1765189853328,0.3290192,92031.0,92030.0,0.00206352]
[1765189857128,0.35121519,92031.0,92030.0,0.00206352]
[1765189857431,0.67421519,92031.0,92030.0,0.00206352]
[1765189857635,0.68438222,92031.0,92030.0,0.00206352]
[1765189858017,0.68438222,92031.0,92030.0,0.00106352]
[1765189858216,0.68438222,92031.0,92030.0,6.352e-05]
[1765189858401,0.68538222,92031.0,92030.0,6.352e-05]
[1765189858601,0.68438222,92031.0,92030.0,6.352e-05]
[1765189858806,0.79408728,92031.0,92030.0,6.352e-05]
[1765189859100,0.80108728,92031.0,92030.0,6.352e-05]
[1765189859355,0.80408728,92031.0,92030.0,6.352e-05]
[1765189861148,0.80407831,92031.0,92030.0,6.352e-05]
[1765189865955,0.82123831,92031.0,92030.0,6.352e-05]
[1765189869316,0.82123324,92031.0,92030.0,6.352e-05]
[1765189870752,0.69436818,92031.0,92030.0,6.352e-05]
[1765189871197,0.71152818,92031.0,92030.0,6.352e-05]
[1765189873158,0.69436818,92031.0,92030.0,6.352e-05]
[1765189873372,0.71152818,92031.0,92030.0,6.352e-05]
[1765189876401,0.71153899,92031.0,92030.0,6.352e-05]
[1765189876747,0.69437899,92031.0,92030.0,6.352e-05]
[1765189877107,0.71153899,92031.0,92030.0,6.352e-05]
[1765189877314,0.28666001,92031.0,92030.0,6.352e-05]
[1765189877559,0.62682001,92031.0,92030.0,6.352e-05]
[1765189877851,0.61682001,92031.0,92030.0,6.352e-05]
[1765189878054,0.685343,92031.0,92030.0,6.352e-05]
[1765189879818,0.68534512,92031.0,92030.0,6.352e-05]
[1765189880224,0.6751792,92031.0,92030.0,6.352e-05]
[1765189881281,0.6580192,92031.0,92030.0,6.352e-05]
[1765189881428,0.6751792,92031.0,92030.0,6.352e-05]
[1765189883200,0.6580192,92031.0,92030.0,6.352e-05]
[1765189883401,0.66431106,92031.0,92030.0,6.352e-05]
[1765189889331,0.62600106,92031.0,92030.0,6.352e-05]
[1765189891431,0.60884106,92031.0,92030.0,6.352e-05]
[1765189891545,0.66707106,92031.0,92030.0,6.352e-05]
[1765189892184,0.64991106,92031.0,92030.0,6.352e-05]
[1765189892389,0.66707106,92031.0,92030.0,6.352e-05]
[1765189897952,0.64216106,92031.0,92030.0,6.352e-05]
[1765189899482,0.62600106,92031.0,92030.0,6.352e-05]
[1765189901255,0.60884106,92031.0,92030.0,6.352e-05]
[1765189901492,0.62600106,92031.0,92030.0,6.352e-05]
[1765189903301,0.40868299,92031.0,92030.0,6.352e-05]
[1765189903518,0.006,92031.0,92030.0,0.25595395]
[1765189904067,0.006,92031.0,92030.0,0.27814595]
[1765189904290,0.004,92031.0,92030.0,0.27814595]
[1765189904514,0.01716,92046.0,92043.0,0.01086448]
[1765189904673,0.22813021,92053.0,92050.0,0.01086366]
[1765189904874,0.01247594,92055.0,92054.0,0.21726377]
[1765189904875,0.00161287,92055.0,92054.0,0.21726377]
[1765189905081,0.00161287,92055.0,92054.0,0.23331377]
[1765189907238,0.00261287,92055.0,92054.0,0.23331377]
[1765189907446,0.00461287,92055.0,92054.0,0.23331377]
[1765189908171,0.00461287,92055.0,92054.0,0.01605]
[1765189910143,0.00461287,92055.0,92052.0,0.00978]
[1765189910144,0.23273735,92055.0,92052.0,0.00978]
[1765189910363,0.21726614,92053.0,92052.0,0.00978]
[1765189911881,0.21826614,92053.0,92052.0,0.00978]
[1765189912893,0.001,92053.0,92052.0,0.2270485]
[1765189913927,0.21826614,92053.0,92052.0,0.00978]
[1765189914125,0.001,92053.0,92052.0,0.00978]
[1765189914443,0.01086366,92050.0,92040.0,0.33570123]
[1765189914774,0.22813467,92051.0,92048.0,0.21727703]
[1765189914889,0.21727331,92050.0,92048.0,0.2172777]
[1765189915098,0.21727331,92050.0,92047.0,0.22814199]
[1765189915319,0.21727331,92050.0,92049.0,0.00978]
[1765189916456,0.22813646,92051.0,92049.0,0.00978]
[1765189916652,0.21727322,92050.0,92049.0,0.00978]
[1765189919288,0.00161287,92055.0,92049.0,0.03669377]
[1765189919475,0.00161287,92055.0,92054.0,0.23331377]
[1765189919677,0.01712,92063.0,92060.0,0.01086248]
[1765189919927,0.21747112,92065.0,92063.0,0.233292]
[1765189919928,0.00023179,92065.0,92063.0,0.233292]
[1765189920089,0.00023179,92065.0,92064.0,0.23329018]
[1765189920295,0.00023179,92065.0,92064.0,0.25284018]
[1765189920490,0.21746961,92065.0,92064.0,0.0356]
[1765189921028,0.21746961,92065.0,92064.0,0.01605]
[1765189921378,0.21724018,92064.0,92063.0,0.00978]
[1765189921700,0.21724617,92062.0,92059.0,0.00978]
[1765189921907,0.21724961,92060.0,92059.0,0.00978]
[1765189923228,0.21724725,92061.0,92059.0,0.00978]
[1765189923424,0.21724096,92064.0,92060.0,0.02613248]
[1765189923646,0.00023179,92065.0,92064.0,0.01527]
[1765189923847,0.00023179,92065.0,92064.0,0.23251018]
[1765189924972,0.00023179,92065.0,92064.0,0.25206018]
[1765189925168,0.00023179,92065.0,92064.0,0.23251018]
[1765189925529,0.00023179,92065.0,92064.0,0.01527]
[1765189925871,0.21746961,92065.0,92064.0,0.01527]
[1765189926167,0.21746961,92065.0,92059.0,0.00978]
[1765189926168,0.01086224,92062.0,92059.0,0.00978]
[1765189926590,0.21724961,92060.0,92059.0,0.00978]
[1765189926948,0.21727322,92050.0,92043.0,0.01086448]
[1765189927152,0.21727322,92050.0,92047.0,0.21727831]
[1765189927380,0.21727322,92050.0,92043.0,0.01086448]
[1765189927547,0.21727322,92050.0,92046.0,0.01086413]
[1765189928169,0.21727322,92050.0,92047.0,0.01086401]
[1765189928580,0.21727322,92050.0,92049.0,0.01278]
[1765189929198,0.21727322,92050.0,92049.0,0.01478]
[1765189929790,0.21727322,92050.0,92049.0,0.00978]
[1765189930122,0.21727322,92050.0,92049.0,0.01178]
[1765189930404,0.2172685,92052.0,92049.0,0.02705]
[1765189930555,0.2172685,92052.0,92049.0,0.24432385]
[1765189930755,0.21727114,92051.0,92049.0,0.25518762]
[1765189930984,0.22813192,92052.0,92049.0,0.02705]
[1765189931214,0.2172715,92051.0,92049.0,0.02605]
[1765189931446,0.22813227,92052.0,92049.0,0.25418859]
[1765189931655,0.21727322,92050.0,92049.0,0.01178]
[1765189931887,0.21727322,92050.0,92049.0,0.002]
[1765189932326,0.21727322,92050.0,92049.0,0.001]
[1765189932562,0.21727146,92051.0,92049.0,0.002]
[1765189932776,0.21727146,92051.0,92049.0,0.001]
[1765189932991,0.21727146,92051.0,92048.0,0.21727669]
[1765189933194,0.21727146,92051.0,92048.0,0.22814058]
[1765189933542,0.228135,92051.0,92048.0,0.22814058]
[1765189933707,0.228135,92051.0,92049.0,0.001]
[1765189933893,0.228135,92051.0,92048.0,0.22814058]
[1765189934303,0.228135,92051.0,92048.0,0.23014058]
[1765189934504,0.228135,92051.0,92048.0,0.22914058]
[1765189934705,0.228135,92051.0,92048.0,0.001]
[1765189934706,0.23350558,92049.0,92048.0,0.001]
[1765189935528,0.01086436,92044.0,92041.0,0.22815905]
[1765189935707,0.22815391,92044.0,92041.0,0.22815905]
[1765189935939,0.01086448,92043.0,92040.0,0.03900231]
[1765189936242,0.22816166,92040.0,92037.0,0.26717118]
[1765189936445,0.21730031,92039.0,92037.0,0.01086519]
[1765189936866,0.22816166,92040.0,92038.0,0.01545]
[1765189937224,0.21729506,92041.0,92038.0,0.02631507]
[1765189937430,0.21729506,92041.0,92039.0,0.21729864]
[1765189937637,0.22815701,92042.0,92039.0,0.21729864]
[1765189937857,0.21729216,92042.0,92040.0,0.2172956]
[1765189938024,0.22815529,92043.0,92041.0,0.21729435]
[1765189938426,0.01086448,92043.0,92041.0,0.21729435]
[1765189938627,0.01086436,92044.0,92041.0,0.21729435]
[1765189939276,0.01086436,92044.0,92041.0,0.21829435]
[1765189939441,0.21729025,92043.0,92041.0,0.21829435]
[1765189939642,0.22815291,92044.0,92041.0,0.21729435]
[1765189940160,0.22815291,92044.0,92041.0,0.23215907]
[1765189940570,0.22815272,92044.0,92041.0,0.23215907]
[1765189941451,0.01086436,92044.0,92042.0,0.21729119]
[1765189942462,0.22814955,92045.0,92042.0,0.22815579]
[1765189942727,0.22402317,92045.0,92042.0,0.22815579]
[1765189942862,0.22402317,92045.0,92042.0,0.23115579]
[1765189943057,0.00673787,92045.0,92042.0,0.0138646]
[1765189943305,0.22815127,92046.0,92042.0,0.23015468]
[1765189943477,0.22815127,92046.0,92043.0,0.21728786]
[1765189944041,0.22815127,92046.0,92043.0,0.22815234]
[1765189944167,0.22815127,92046.0,92043.0,0.01086448]
[1765189944378,0.22815127,92046.0,92043.0,0.22815366]
[1765189944741,0.22814857,92046.0,92043.0,0.22815366]
[1765189944956,0.01086342,92052.0,92047.0,0.01086401]
[1765189945101,0.22813627,92051.0,92048.0,0.21727747]
[1765189945307,0.01712,92056.0,92054.0,0.21726323]
[1765189945515,0.01712,92056.0,92055.0,0.21726141]
[1765189946720,0.01812,92056.0,92055.0,0.21726141]
[1765189947519,0.01812,92056.0,92047.0,0.01086401]
[1765189947520,0.01086318,92054.0,92047.0,0.01086401]
[1765189947745,0.01154,92051.0,92049.0,0.21727558]
[1765189948081,0.22881214,92051.0,92048.0,0.22813958]
[1765189948258,0.01154,92051.0,92049.0,0.2172739]
[1765189948618,0.02240354,92051.0,92048.0,0.22813958]
[1765189948762,0.01086401,92047.0,92044.0,0.21728522]
[1765189948972,0.22814186,92048.0,92044.0,0.22814958]
[1765189949177,0.22814186,92048.0,92045.0,0.21728443]
[1765189949382,0.21728125,92047.0,92044.0,0.22814958]
[1765189949757,0.01154,92045.0,92041.0,0.01086472]
[1765189950078,0.01154,92045.0,92044.0,0.002]
[1765189950487,0.0114184,92045.0,92044.0,0.002]
[1765189950669,0.0114184,92045.0,92043.0,0.21728905]
[1765189952179,0.0114184,92045.0,92043.0,0.21828905]
[1765189952382,0.0114184,92045.0,92044.0,0.21728738]
[1765189952697,0.0114184,92045.0,92043.0,0.001]
[1765189952907,0.0114184,92045.0,92043.0,0.003]
[1765189953096,0.22870552,92045.0,92043.0,0.001]
[1765189953299,0.21728738,92044.0,92042.0,0.0108646]
[1765189953574,0.22815644,92043.0,92040.0,0.00978]
[1765189954064,0.22815644,92043.0,92033.0,0.03900231]
[1765189954065,0.21731099,92034.0,92033.0,0.03900231]
[1765189954311,0.01086732,92019.0,92016.0,0.03900231]
[1765189954541,0.01086779,92015.0,92012.0,0.03900231]
[1765189954767,0.01086779,92015.0,92011.0,0.01086826]
[1765189954986,0.2282288,92013.0,92010.0,0.01126838]
[1765189955150,0.01086802,92013.0,92011.0,0.21736524]
[1765189955362,0.01086802,92013.0,92010.0,0.0004]
[1765189955561,0.22822907,92013.0,92010.0,0.0004]
[1765189956187,0.22822844,92014.0,92011.0,0.22823357]
[1765189956394,0.22822844,92014.0,92011.0,0.01086826]
[1765189956891,0.21736062,92013.0,92011.0,0.01086826]
[1765189957438,0.21736295,92012.0,92010.0,0.01326838]
[1765189957638,0.01086802,92013.0,92010.0,0.0024]
[1765189957875,0.22822646,92014.0,92011.0,0.01086826]
[1765189958261,0.01086791,92014.0,92012.0,0.21736266]
[1765189958542,0.01086791,92014.0,92011.0,0.002]
[1765189959054,0.22822653,92014.0,92011.0,0.21836516]
[1765189959259,0.21736061,92013.0,92011.0,0.001]
[1765189959862,0.21736295,92012.0,92011.0,0.001]
[1765189960070,0.22822425,92015.0,92012.0,0.23281295]
[1765189960274,0.22822834,92014.0,92011.0,0.001]
[1765189960486,0.21736295,92012.0,92011.0,0.001]
[1765189961148,0.21736295,92012.0,92011.0,0.002]
[1765189961284,0.21736295,92012.0,92011.0,0.001]
[1765189962323,0.21736295,92012.0,92011.0,0.002]
[1765189965570,0.22822834,92014.0,92011.0,0.002]
[1765189966301,0.0407,92022.0,92012.0,0.01086814]
[1765189966472,0.01716,92025.0,92022.0,0.01086696]
[1765189966693,0.01716,92025.0,92023.0,0.21733625]
[1765189966895,0.01716,92025.0,92024.0,0.01639]
[1765189967112,0.01716,92025.0,92023.0,0.21733612]
[1765189967399,0.01716,92025.0,92022.0,0.22820412]
[1765189967605,0.0108659,92031.0,92024.0,0.01086673]
[1765189967822,0.22818645,92030.0,92025.0,0.01086661]
[1765189967969,0.22818432,92031.0,92027.0,0.22819383]
[1765189968170,0.22818432,92031.0,92028.0,0.22818933]
[1765189968370,0.0108659,92031.0,92028.0,0.01086625]
[1765189968570,0.01086602,92030.0,92026.0,0.22819427]
[1765189968850,0.01086602,92030.0,92028.0,0.21732407]
[1765189969024,0.22918616,92031.0,92028.0,0.22819032]
[1765189969278,0.23218616,92031.0,92028.0,0.22819032]
[1765189969409,0.22918616,92031.0,92028.0,0.22819032]
[1765189969978,0.21732065,92030.0,92028.0,0.22819032]
[1765189970187,0.02432,92030.0,92027.0,0.01086637]
[1765189970400,0.24164172,92030.0,92027.0,0.22819192]
[1765189970803,0.001,92030.0,92028.0,0.21732462]
[1765189971010,0.228184,92031.0,92028.0,0.21732462]
[1765189971356,0.2291866,92030.0,92027.0,0.22819192]
[1765189971702,0.2281866,92030.0,92027.0,0.22819192]
[1765189971865,0.01086578,92032.0,92028.0,0.22819137]
[1765189972047,0.21731977,92031.0,92028.0,0.22819137]
[1765189972251,0.01086578,92032.0,92025.0,0.01086661]
[1765189972252,0.001,92030.0,92025.0,0.01086661]
[1765189972469,0.02764,92026.0,92021.0,0.01086708]
[1765189972656,0.23080046,92030.0,92026.0,0.01086649]
[1765189972884,0.01306243,92029.0,92024.0,0.2173343]
[1765189973086,0.01086684,92023.0,92020.0,0.0108672]
[1765189973285,0.01086684,92023.0,92010.0,0.27989723]
[1765189973286,0.01086779,92015.0,92010.0,0.01126838]
[1765189973467,0.01086791,92014.0,92010.0,0.0004]
[1765189973654,0.01159,92014.0,92012.0,0.01086814]
[1765189973859,0.22821662,92018.0,92014.0,0.21735822]
[1765189974074,0.01086614,92029.0,92026.0,0.01086649]
[1765189974296,0.01086625,92028.0,92024.0,0.22820069]
[1765189974496,0.01086625,92028.0,92024.0,0.01086673]
[1765189974704,0.01086625,92028.0,92023.0,0.22711589]
[1765189974705,0.01086649,92026.0,92023.0,0.00978]
[1765189974882,0.01086732,92019.0,92014.0,0.01086791]
[1765189975077,0.21734877,92018.0,92014.0,0.23022392]
[1765189975360,0.2282162,92018.0,92014.0,0.23005392]
[1765189975499,0.2282162,92018.0,92014.0,0.22805392]
[1765189975500,0.22821707,92018.0,92014.0,0.22805392]
[1765189975712,0.22821707,92018.0,92015.0,0.21735576]
[1765189976902,0.22821707,92018.0,92015.0,0.22822355]
[1765189977306,0.22821707,92018.0,92015.0,0.21735499]
[1765189977534,0.01159,92020.0,92016.0,0.21735311]
[1765189977736,0.01086673,92024.0,92020.0,0.21734171]
[1765189977896,0.01086673,92024.0,92021.0,0.21734169]
[1765189978102,0.21733254,92025.0,92021.0,0.21734169]
[1765189978103,0.01086661,92025.0,92022.0,0.01086696]
[1765189978435,0.22819892,92025.0,92022.0,0.01086696]
[1765189978643,0.22819892,92025.0,92021.0,0.21734153]
[1765189978644,0.22820289,92024.0,92021.0,0.22820861]
[1765189979630,0.21736295,92012.0,92010.0,0.0004]
[1765189979833,0.01086802,92013.0,92010.0,0.0004]
[1765189980038,0.21736531,92011.0,92010.0,0.0004]
[1765189980600,0.01716,92016.0,92010.0,0.02765838]
[1765189980794,0.01086637,92027.0,92024.0,0.01086673]
[1765189980999,0.228185,92031.0,92023.0,0.01086684]
[1765189981000,0.0108659,92031.0,92026.0,0.02617]
[1765189981228,0.01086531,92036.0,92033.0,0.01086566]
[1765189981433,0.01716,92037.0,92036.0,0.24359627]
[1765189981636,0.01716,92037.0,92036.0,0.26327627]
[1765189981866,0.01086389,92048.0,92045.0,0.01086425]
[1765189982071,0.24441293,92051.0,92048.0,0.22814158]
[1765189982189,0.24441293,92051.0,92048.0,0.01086389]
[1765189982388,0.02714082,92051.0,92049.0,0.21727504]
[1765189983086,0.24441196,92051.0,92048.0,0.01086389]
[1765189983295,0.01627728,92051.0,92050.0,0.01563]
[1765189985404,0.22811652,92059.0,92056.0,0.01086295]
[1765189985620,0.22811652,92059.0,92055.0,0.01086307]
[1765189985904,0.21725509,92058.0,92055.0,0.22812303]
[1765189986084,0.00161287,92059.0,92058.0,0.01563]
[1765189986606,0.00261287,92059.0,92058.0,0.01563]
[1765189986824,0.00361287,92059.0,92058.0,0.01563]
[1765189987073,0.00361287,92059.0,92058.0,0.03531]
[1765189987285,0.00161287,92059.0,92058.0,0.03531]
[1765189987495,0.00023179,92065.0,92064.0,0.21724018]
[1765189987699,0.00023179,92065.0,92064.0,0.23287018]
[1765189988837,0.00023179,92065.0,92062.0,0.04283424]
[1765189988838,0.00023179,92065.0,92062.0,0.00978]
[1765189989035,0.00023179,92065.0,92062.0,0.23788582]
[1765189989517,0.01270655,92065.0,92062.0,0.00978]
[1765189989724,0.22811555,92059.0,92054.0,0.01086318]
[1765189989867,0.21725682,92057.0,92055.0,0.01086307]
[1765189990069,0.2172803,92047.0,92044.0,0.21728717]
[1765189990272,0.22813372,92052.0,92048.0,0.01086389]
[1765189990732,0.0108633,92053.0,92050.0,0.01086366]
[1765189990934,0.0108633,92053.0,92050.0,0.22813588]
[1765189991136,0.21727558,92049.0,92045.0,0.21728324]
[1765189991336,0.22813708,92050.0,92047.0,0.21727992]
[1765189991555,0.01086366,92050.0,92046.0,0.01086413]
[1765189991785,0.24017517,92051.0,92048.0,0.21727721]
[1765189992082,0.24017517,92051.0,92047.0,0.22814342]
[1765189992236,0.22813766,92050.0,92046.0,0.22814662]
[1765189992705,0.22813766,92050.0,92047.0,0.21727973]
[1765189992976,0.21727564,92049.0,92046.0,0.22814662]
[1765189993846,0.01086366,92050.0,92047.0,0.22814341]
[1765189994018,0.22813703,92050.0,92047.0,0.22814341]
[1765189994246,0.01086366,92050.0,92048.0,0.21727713]
[1765189994367,0.24178851,92051.0,92048.0,0.21727713]
[1765189994767,0.2172733,92050.0,92047.0,0.22814341]
[1765189995792,0.01191,92064.0,92057.0,0.01086283]
[1765189996015,0.01086177,92066.0,92062.0,0.01086224]
[1765189996216,0.01086177,92066.0,92062.0,0.22810702]
[1765189996217,0.21724029,92064.0,92062.0,0.22810702]
[1765189996440,0.010862,92064.0,92061.0,0.01086236]
[1765189996607,0.22810232,92064.0,92061.0,0.22810755]
[1765189997620,0.22810454,92064.0,92054.0,0.21726253]
[1765189997819,0.01191,92057.0,92050.0,0.01086366]
[1765189997972,0.01191,92057.0,92054.0,0.22812471]
[1765189998174,0.22916735,92057.0,92054.0,0.22812471]
[1765189999063,0.21747189,92065.0,92064.0,0.21724018]
[1765189999064,0.00023179,92065.0,92064.0,0.21724018]
[1765189999358,0.00023179,92065.0,92060.0,0.01086248]
[1765189999359,0.01270655,92065.0,92060.0,0.01086248]
[1765189999530,0.01086224,92062.0,92059.0,0.2281125]
[1765189999897,0.22810793,92062.0,92059.0,0.2281125]
[1765190000095,0.01086224,92062.0,92059.0,0.2281125]
[1765190000339,0.01086224,92062.0,92058.0,0.01086271]
[1765190000658,0.21724738,92061.0,92058.0,0.22811687]
[1765190001403,0.22810731,92062.0,92059.0,0.21725128]
[1765190002004,0.22810731,92062.0,92059.0,0.22811387]
[1765190002437,0.23010731,92062.0,92059.0,0.22811387]
[1765190002942,0.23110731,92062.0,92059.0,0.22811387]
[1765190003137,0.003,92062.0,92060.0,0.21724961]
[1765190003995,0.003,92062.0,92059.0,0.228114]
[1765190004140,0.001,92062.0,92060.0,0.21724961]
[1765190004370,0.001,92062.0,92059.0,0.228114]
[1765190004520,0.22810527,92063.0,92059.0,0.228114]
[1765190004723,0.001,92062.0,92059.0,0.228114]
[1765190005022,0.21824503,92062.0,92059.0,0.228114]
[1765190005224,0.21724503,92062.0,92059.0,0.228114]
[1765190005530,0.02724248,92060.0,92055.0,0.02064307]
[1765190005750,0.21725905,92056.0,92055.0,0.00978]
[1765190007077,0.21727098,92051.0,92048.0,0.00978]
[1765190007252,0.01086354,92051.0,92048.0,0.00978]
[1765190007451,0.01086354,92051.0,92048.0,0.02064389]
[1765190007655,0.22813253,92052.0,92049.0,0.22813732]
[1765190007857,0.22813253,92052.0,92048.0,0.2379213]
[1765190008074,0.22813253,92052.0,92045.0,0.02919199]
[1765190008075,0.21727322,92050.0,92045.0,0.21728502]
[1765190008405,0.22813319,92052.0,92049.0,0.22813719]
[1765190008612,0.02277307,92055.0,92051.0,0.22813283]
[1765190009394,0.24003465,92055.0,92051.0,0.22813283]
[1765190009808,0.02277307,92055.0,92051.0,0.01086354]
[1765190010026,0.21726441,92054.0,92051.0,0.01086354]
[1765190010578,0.21726673,92053.0,92051.0,0.22813392]
[1765190011312,0.22811936,92058.0,92051.0,0.22813392]
[1765190011313,0.22811936,92058.0,92054.0,0.01086318]
[1765190011722,0.2172569,92057.0,92055.0,0.21726093]
[1765190011990,0.22811732,92058.0,92055.0,0.21726093]
[1765190012714,0.22811732,92058.0,92055.0,0.228124]
[1765190013115,0.21726366,92055.0,92053.0,0.02919199]
[1765190013337,0.21726366,92055.0,92053.0,0.24645763]
[1765190013743,0.22812623,92056.0,92054.0,0.21726377]
[1765190013952,0.01086295,92056.0,92054.0,0.21726377]
[1765190014335,0.001,92058.0,92055.0,0.01086307]
[1765190014555,0.21825593,92058.0,92055.0,0.22812406]
[1765190014739,0.22812427,92056.0,92053.0,0.02919199]
[1765190014943,0.22812427,92056.0,92053.0,0.02930402]
[1765190015984,0.01086295,92056.0,92053.0,0.02930402]
[1765190016161,0.23364377,92054.0,92053.0,0.02930402]
[1765190016532,0.25701377,92054.0,92053.0,0.02930402]
[1765190016733,0.25701377,92054.0,92046.0,0.01086413]
[1765190016734,0.21727558,92049.0,92045.0,0.00978]
[1765190016932,0.2172803,92047.0,92044.0,0.03900231]
[1765190017143,0.2172834,92046.0,92043.0,0.04986679]
[1765190017384,0.2172834,92046.0,92042.0,0.21729156]
[1765190017385,0.21728974,92043.0,92042.0,0.03900231]
[1765190017561,0.02277377,92049.0,92045.0,0.24449731]
[1765190017562,0.01086377,92049.0,92045.0,0.24449731]
[1765190017763,0.01086307,92055.0,92049.0,0.01086377]
[1765190017988,0.22812482,92055.0,92052.0,0.22812995]
[1765190018149,0.001,92054.0,92053.0,0.21726614]
[1765190018345,0.01086307,92055.0,92054.0,0.00978]
[1765190018680,0.01086259,92059.0,92054.0,0.00978]
[1765190018880,0.01086224,92062.0,92059.0,0.01086259]
[1765190019062,0.01086236,92061.0,92058.0,0.02721271]
[1765190019262,0.22810986,92061.0,92058.0,0.24446247]
[1765190019602,0.21724729,92061.0,92059.0,0.01086259]
[1765190019762,0.06252299,92064.0,92059.0,0.22810984]
[1765190019964,0.00184466,92065.0,92064.0,0.21724018]
[1765190020192,0.00184466,92065.0,92064.0,0.23359018]
[1765190020956,0.01822466,92065.0,92057.0,0.2281175]
[1765190021164,0.21724087,92064.0,92060.0,0.21724955]
[1765190021362,0.22810287,92064.0,92060.0,0.22811203]
[1765190021566,0.00584466,92065.0,92064.0,0.21724018]
[1765190021769,0.00284466,92065.0,92064.0,0.21724018]
[1765190022204,0.00484466,92065.0,92061.0,0.22810758]
[1765190022405,0.00284466,92065.0,92062.0,0.21724282]
[1765190022629,0.22308271,92065.0,92062.0,0.21724282]
[1765190022825,0.2339446,92065.0,92062.0,0.22810506]
[1765190023032,0.2329446,92065.0,92062.0,0.22810506]
[1765190023308,0.21824057,92064.0,92062.0,0.22810506]
[1765190023521,0.001,92064.0,92063.0,0.21724254]
[1765190023718,0.00484466,92065.0,92064.0,0.21724018]
[1765190023933,0.00184466,92065.0,92063.0,0.21724191]
[1765190024210,0.222083,92065.0,92062.0,0.22810506]
[1765190024655,0.221083,92065.0,92062.0,0.22810506]
[1765190025069,0.219083,92065.0,92062.0,0.22810506]
[1765190025287,0.23394489,92065.0,92062.0,0.22810506]
[1765190025448,0.23094489,92065.0,92062.0,0.22810506]
[1765190025649,0.21724075,92064.0,92062.0,0.01086224]
[1765190026182,0.23294489,92065.0,92062.0,0.22810653]
[1765190026624,0.23194489,92065.0,92062.0,0.22810653]
[1765190027010,0.23294489,92065.0,92062.0,0.22810653]
[1765190027219,0.01370655,92065.0,92063.0,0.21724153]
[1765190027587,0.002,92064.0,92063.0,0.21724153]
[1765190027793,0.00284466,92065.0,92064.0,0.21724018]
[1765190028109,0.00384466,92065.0,92064.0,0.21724018]
[1765190028314,0.00484466,92065.0,92064.0,0.21724018]
[1765190028501,0.00284466,92065.0,92064.0,0.21724018]
[1765190029691,0.00184466,92065.0,92064.0,0.21724018]
[1765190029950,0.00284466,92065.0,92064.0,0.21724018]
[1765190030369,0.00284466,92065.0,92063.0,0.21724254]
[1765190030370,0.00584466,92065.0,92063.0,0.21724254]
[1765190030590,0.22308375,92065.0,92063.0,0.21724232]
[1765190030781,0.00584466,92065.0,92063.0,0.21724232]
[1765190031039,0.00584466,92065.0,92061.0,0.21724695]
[1765190031040,0.21724476,92064.0,92061.0,0.21724695]
[1765190031374,0.23294442,92065.0,92063.0,0.21724182]
[1765190031581,0.23094442,92065.0,92063.0,0.21724182]
[1765190031978,0.23394442,92065.0,92063.0,0.21724182]
[1765190032695,0.00484466,92065.0,92063.0,0.21724182]
[1765190032895,0.00484466,92065.0,92064.0,0.21724018]
[1765190033215,0.00484466,92065.0,92063.0,0.21724182]
[1765190033566,0.00484466,92065.0,92064.0,0.21724018]
[1765190033759,0.00584466,92065.0,92064.0,0.21724018]
[1765190033962,0.00284466,92065.0,92064.0,0.21724018]
[1765190034436,0.00484466,92065.0,92064.0,0.21724018]
[1765190035774,0.00484466,92065.0,92064.0,0.27443218]
[1765190035775,0.00323179,92065.0,92064.0,0.27443218]
[1765190036370,0.00423179,92065.0,92064.0,0.27443218]
[1765190036579,0.00123179,92065.0,92064.0,0.27443218]
[1765190036811,0.00023179,92065.0,92064.0,0.27443218]